[Event "5e festival international d'échecs d'A"]
[Site "Allauch, France"]
[Date "2023.08.29"]
[Round "2.6"]
[White "Personne, Solene"]
[Black "Nakle-Fambon, Gabriel"]
[Result "1-0"]
[WhiteElo "1542"]
[BlackElo "1256"]
[PlyCount "111"]
[EventDate "2023.??.??"]
[TimeControl "1"]

1. e4 {[%emt 0:00:00]} e5 {[%emt 0:00:00]} 2. Nf3 {[%emt 0:00:00]} Nc6 {
[%emt 0:00:00]} 3. d4 {[%emt 0:00:00]} exd4 {[%emt 0:00:00]} 4. Bc4 {[%emt 0:
00:00]} Bb4+ {[%emt 0:00:00]} 5. c3 {[%emt 0:00:00]} dxc3 {[%emt 0:00:00]} 6.
O-O {[%emt 0:00:00]} Nf6 {[%emt 0:00:00]} 7. a3 {[%emt 0:00:00]} Ba5 {[%emt 0:
00:00]} 8. b4 {[%emt 0:00:00]} Bb6 {[%emt 0:00:00]} 9. Nxc3 {[%emt 0:00:00]}
O-O {[%emt 0:00:00]} 10. Bb2 {[%emt 0:00:00]} Re8 {[%emt 0:00:00]} 11. Qb3 {
[%emt 0:00:00]} Re7 {[%emt 0:00:00]} 12. Rfe1 {[%emt 0:00:00]} d6 {[%emt 0:00:
00]} 13. Ng5 {[%emt 0:00:00]} Ne5 {[%emt 0:00:00]} 14. Nd5 {[%emt 0:00:00]}
Nxd5 {[%emt 0:00:00]} 15. Bxd5 {[%emt 0:00:00]} c6 {[%emt 0:00:00]} 16. Bxe5 {
[%emt 0:00:00]} cxd5 {[%emt 0:00:00]} 17. Bb2 {[%emt 0:00:00]} h6 {[%emt 0:00:
00]} 18. Nf3 {[%emt 0:00:00]} dxe4 {[%emt 0:00:00]} 19. Qc3 {[%emt 0:00:00]} f6
{[%emt 0:00:00]} 20. Qc4+ {[%emt 0:00:00]} d5 {[%emt 0:00:00]} 21. Qe2 {
[%emt 0:00:00]} Kf8 {[%emt 0:00:00]} 22. Nd4 {[%emt 0:00:00]} Bxd4 {[%emt 0:00:
00]} 23. Bxd4 {[%emt 0:00:00]} Bf5 {[%emt 0:00:00]} 24. Bc5 {[%emt 0:00:00]}
Rc8 {[%emt 0:00:00]} 25. Qh5 {[%emt 0:00:00]} Be6 {[%emt 0:00:00]} 26. Rad1 {
[%emt 0:00:00]} b6 {[%emt 0:00:00]} 27. Bxe7+ {[%emt 0:00:00]} Kxe7 {[%emt 0:
00:00]} 28. f3 {[%emt 0:00:00]} Qe8 {[%emt 0:00:00]} 29. Qh4 {[%emt 0:00:00]}
Kf7 {[%emt 0:00:00]} 30. fxe4 {[%emt 0:00:00]} dxe4 {[%emt 0:00:00]} 31. Rxe4 {
[%emt 0:00:00]} Qc6 {[%emt 0:00:00]} 32. Rde1 {[%emt 0:00:00]} Re8 {[%emt 0:00:
00]} 33. Qh5+ {[%emt 0:00:00]} Kf8 {[%emt 0:00:00]} 34. Qe2 {[%emt 0:00:00]}
Kf7 {[%emt 0:00:00]} 35. Qe3 {[%emt 0:00:00]} a5 {[%emt 0:00:00]} 36. Rc1 {
[%emt 0:00:00]} Qd6 {[%emt 0:00:00]} 37. Rd4 {[%emt 0:00:00]} Bd5 {[%emt 0:00:
00]} 38. Qd2 {[%emt 0:00:00]} Re5 {[%emt 0:00:00]} 39. bxa5 {[%emt 0:00:00]}
bxa5 {[%emt 0:00:00]} 40. Qxa5 {[%emt 0:00:00]} Ke6 {[%emt 0:00:00]} 41. Rb1 {
[%emt 0:00:00]} Qd7 {[%emt 0:00:00]} 42. Rb6+ {[%emt 0:00:00]} Kf5 {[%emt 0:00:
00]} 43. Qb4 {[%emt 0:00:00]} Re4 {[%emt 0:00:00]} 44. Rxe4 {[%emt 0:00:00]}
Bxe4 {[%emt 0:00:00]} 45. Rb5+ {[%emt 0:00:00]} Bd5 {[%emt 0:00:00]} 46. a4 {
[%emt 0:00:00]} Ke6 {[%emt 0:00:00]} 47. Qc5 {[%emt 0:00:00]} Bc6 {[%emt 0:00:
00]} 48. Rb6 {[%emt 0:00:00]} Qd1+ {[%emt 0:00:00]} 49. Kf2 {[%emt 0:00:00]}
Qd2+ {[%emt 0:00:00]} 50. Kg3 {[%emt 0:00:00]} Qxg2+ {[%emt 0:00:00]} 51. Kh4 {
[%emt 0:00:00]} Qxh2+ {[%emt 0:00:00]} 52. Kg4 {[%emt 0:00:00]} Qg2+ {[%emt 0:
00:00]} 53. Kh5 {[%emt 0:00:00]} Qf3+ {[%emt 0:00:00]} 54. Kg6 {[%emt 0:00:00]}
Qe4+ {[%emt 0:00:00]} 55. Kxg7 {[%emt 0:00:00]} Qg4+ {[%emt 0:00:00]} 56. Kf8 {
[%emt 0:00:00]} 1-0

[Event "5e festival international d'échecs d'A"]
[Site "Allauch, France"]
[Date "2023.08.29"]
[Round "2.7"]
[White "Gouiffes, Thierry"]
[Black "Carissan, Matteo"]
[Result "0-1"]
[WhiteElo "1252"]
[BlackElo "1440"]
[PlyCount "20"]
[EventDate "2023.??.??"]
[TimeControl "1"]

1. d4 {[%emt 0:00:00]} e6 {[%emt 0:00:00]} 2. Nf3 {[%emt 0:00:00]} c5 {[%emt 0:
00:00]} 3. Bf4 {[%emt 0:00:00]} Qb6 {[%emt 0:00:00]} 4. Nc3 {[%emt 0:00:00]}
cxd4 {[%emt 0:00:00]} 5. Nxd4 {[%emt 0:00:00]} Bc5 {[%emt 0:00:00]} 6. e3 {
[%emt 0:00:00]} Qxb2 {[%emt 0:00:00]} 7. Rb1 {[%emt 0:00:00]} Qxc3+ {[%emt 0:
00:00]} 8. Ke2 {[%emt 0:00:00]} Bxd4 {[%emt 0:00:00]} 9. exd4 {[%emt 0:01:00]}
b6 {[%emt 0:00:13]} 10. Rb3 {[%emt 0:00:00]} Ba6+ {[%emt 0:00:00]} 0-1

[Event "5e festival international d'échecs d'A"]
[Site "Allauch, France"]
[Date "2023.08.29"]
[Round "2.8"]
[White "Bonchristiani, Pierre"]
[Black "Hurtevent, Michel"]
[Result "1-0"]
[WhiteElo "1416"]
[BlackElo "1228"]
[PlyCount "53"]
[EventDate "2023.??.??"]
[TimeControl "1"]

1. e4 {[%emt 0:00:00]} e6 {[%emt 0:00:00]} 2. d4 {[%emt 0:00:00]} d5 {[%emt 0:
00:00]} 3. Nd2 {[%emt 0:00:00]} Nf6 {[%emt 0:00:00]} 4. e5 {[%emt 0:03:00]}
Nfd7 {[%emt 0:00:00]} 5. f4 {[%emt 0:00:00]} c5 {[%emt 0:00:00]} 6. c3 {
[%emt 0:00:00]} Nc6 {[%emt 0:00:00]} 7. Ndf3 {[%emt 0:00:00]} a6 {[%emt 0:00:
00]} 8. Be3 {[%emt 0:00:00]} cxd4 {[%emt 0:00:00]} 9. cxd4 {[%emt 0:00:00]} Qb6
{[%emt 0:00:00]} 10. b3 {[%emt 0:00:00]} Bb4+ {[%emt 0:00:00]} 11. Kf2 {
[%emt 0:00:00]} Qd8 {[%emt 0:00:00]} 12. Bd3 {[%emt 0:00:00]} Ne7 {[%emt 0:00:
00]} 13. Qc2 {[%emt 0:00:00]} f6 {[%emt 0:00:00]} 14. g4 {[%emt 0:00:00]} b5 {
[%emt 0:00:00]} 15. h4 {[%emt 0:00:00]} g6 {[%emt 0:00:00]} 16. h5 {[%emt 0:00:
00]} f5 {[%emt 0:00:00]} 17. hxg6 {[%emt 0:00:00]} Nxg6 {[%emt 0:00:00]} 18.
gxf5 {[%emt 0:00:00]} exf5 {[%emt 0:00:00]} 19. Bxf5 {[%emt 0:00:00]} Ndf8 {
[%emt 0:00:00]} 20. Ng5 {[%emt 0:00:00]} Bxf5 {[%emt 0:00:00]} 21. Qxf5 {
[%emt 0:00:00]} Ne7 {[%emt 0:00:00]} 22. Qf7+ {[%emt 0:00:00]} Kd7 {[%emt 0:00:
00]} 23. Rc1 {[%emt 0:00:00]} Rc8 {[%emt 0:00:00]} 24. e6+ {[%emt 0:00:00]} Kd6
{[%emt 0:00:00]} 25. Ne2 {[%emt 0:00:00]} h6 {[%emt 0:00:00]} 26. Qf6 {[%emt 0:
00:00]} hxg5 {[%emt 0:00:00]} 27. Qe5# {[%emt 0:00:00]} 1-0

[Event "5e festival international d'échecs d'A"]
[Site "Allauch, France"]
[Date "2023.08.29"]
[Round "3.2"]
[White "Chaumet, Etienne"]
[Black "Petrosyan, Armen"]
[Result "1/2-1/2"]
[WhiteElo "2075"]
[BlackElo "2360"]
[PlyCount "82"]
[EventDate "2023.??.??"]
[TimeControl "1"]

1. e4 {[%emt 0:00:00]} e5 {[%emt 0:00:00]} 2. Nf3 {[%emt 0:00:00]} Nc6 {
[%emt 0:00:00]} 3. Bb5 {[%emt 0:00:00]} a6 {[%emt 0:00:00]} 4. Ba4 {[%emt 0:00:
00]} Nf6 {[%emt 0:00:00]} 5. O-O {[%emt 0:00:00]} Be7 {[%emt 0:00:00]} 6. Re1 {
[%emt 0:00:00]} b5 {[%emt 0:00:00]} 7. Bb3 {[%emt 0:00:00]} O-O {[%emt 0:00:00]
} 8. c3 {[%emt 0:00:00]} d5 {[%emt 0:00:00]} 9. exd5 {[%emt 0:00:00]} Nxd5 {
[%emt 0:00:00]} 10. Nxe5 {[%emt 0:00:00]} Nxe5 {[%emt 0:00:00]} 11. Rxe5 {
[%emt 0:00:00]} c6 {[%emt 0:00:00]} 12. d4 {[%emt 0:00:00]} Bd6 {[%emt 0:00:00]
} 13. Re1 {[%emt 0:00:00]} Qh4 {[%emt 0:00:00]} 14. g3 {[%emt 0:00:00]} Qh3 {
[%emt 0:00:00]} 15. Be3 {[%emt 0:00:00]} Bg4 {[%emt 0:00:00]} 16. Qd3 {[%emt 0:
00:00]} Rae8 {[%emt 0:00:00]} 17. Nd2 {[%emt 0:00:00]} f5 {[%emt 0:00:00]} 18.
Qf1 {[%emt 0:00:00]} Qh5 {[%emt 0:00:00]} 19. f4 {[%emt 0:00:00]} Kh8 {[%emt 0:
00:00]} 20. Bxd5 {[%emt 0:00:00]} cxd5 {[%emt 0:00:00]} 21. a4 {[%emt 0:00:00]}
g5 {[%emt 0:00:00]} 22. axb5 {[%emt 0:00:00]} axb5 {[%emt 0:00:00]} 23. fxg5 {
[%emt 0:00:00]} Rxe3 {[%emt 0:00:00]} 24. Rxe3 {[%emt 0:00:00]} f4 {[%emt 0:00:
00]} 25. gxf4 {[%emt 0:00:00]} Bxf4 {[%emt 0:00:00]} 26. Rg3 {[%emt 0:00:00]}
Qxg5 {[%emt 0:00:00]} 27. Kh1 {[%emt 0:00:00]} Qh6 {[%emt 0:00:00]} 28. Qg2 {
[%emt 0:00:00]} Bf5 {[%emt 0:00:00]} 29. Rg1 {[%emt 0:00:00]} Bxg3 {[%emt 0:00:
00]} 30. Qxg3 {[%emt 0:00:00]} Re8 {[%emt 0:00:00]} 31. Qg5 {[%emt 0:08:05]}
Qxg5 {[%emt 0:00:00]} 32. Rxg5 {[%emt 0:00:00]} Re1+ {[%emt 0:00:00]} 33. Kg2 {
[%emt 0:00:00]} Re2+ {[%emt 0:00:00]} 34. Kg3 {[%emt 0:00:00]} Bg6 {[%emt 0:00:
00]} 35. Nf1 {[%emt 0:00:00]} Be4 {[%emt 0:00:00]} 36. Re5 {[%emt 0:00:00]}
Rg2+ {[%emt 0:00:00]} 37. Kh4 {[%emt 0:00:00]} Rxb2 {[%emt 0:00:00]} 38. Ne3 {
[%emt 0:00:00]} Rxh2+ {[%emt 0:00:00]} 39. Kg3 {[%emt 0:00:00]} Rd2 {[%emt 0:
00:00]} 40. Nxd5 {[%emt 0:00:07]} Bxd5 41. Rxd5 {[%emt 0:00:00]} Rd3+ 1/2-1/2

[Event "5e festival international d'échecs d'A"]
[Site "Allauch, France"]
[Date "2023.08.29"]
[Round "3.4"]
[White "Moncamp, Gilles"]
[Black "Charvein, Gabriel"]
[Result "1/2-1/2"]
[WhiteElo "2103"]
[BlackElo "1993"]
[PlyCount "73"]
[EventDate "2023.??.??"]
[TimeControl "1"]

1. e4 {[%emt 0:00:00]} e5 {[%emt 0:00:00]} 2. Nf3 {[%emt 0:00:00]} d5 {[%emt 0:
00:00]} 3. exd5 {[%emt 0:00:00]} Nf6 {[%emt 0:00:00]} 4. Bb5+ {[%emt 0:00:00]}
Bd7 {[%emt 0:00:00]} 5. Qe2 {[%emt 0:00:00]} Bd6 {[%emt 0:00:00]} 6. d4 {
[%emt 0:00:00]} e4 {[%emt 0:00:00]} 7. Bg5 {[%emt 0:00:00]} O-O {[%emt 0:00:00]
} 8. Ne5 {[%emt 0:00:00]} Bxe5 {[%emt 0:00:00]} 9. dxe5 {[%emt 0:00:00]} Bxb5 {
[%emt 0:00:00]} 10. Qxb5 {[%emt 0:00:00]} Qxd5 {[%emt 0:00:00]} 11. Nc3 {
[%emt 0:00:00]} Qxb5 {[%emt 0:00:00]} 12. Nxb5 {[%emt 0:00:00]} Nd5 {[%emt 0:
00:00]} 13. O-O-O {[%emt 0:00:00]} c6 {[%emt 0:00:00]} 14. Nd6 {[%emt 0:00:00]}
Nd7 {[%emt 0:00:00]} 15. Nxb7 {[%emt 0:00:00]} Nxe5 {[%emt 0:00:00]} 16. Nd6 {
[%emt 0:00:00]} h6 {[%emt 0:00:00]} 17. Be3 {[%emt 0:00:00]} Nxe3 {[%emt 0:00:
00]} 18. fxe3 {[%emt 0:00:00]} f5 {[%emt 0:00:00]} 19. h3 {[%emt 0:00:00]} Rad8
{[%emt 0:00:00]} 20. Rd4 {[%emt 0:00:00]} c5 {[%emt 0:00:00]} 21. Rd5 {[%emt 0:
00:00]} Nc4 {[%emt 0:00:00]} 22. Nxf5 {[%emt 0:00:00]} Rxd5 {[%emt 0:00:00]}
23. Ne7+ {[%emt 0:00:00]} Kh7 {[%emt 0:00:00]} 24. Nxd5 {[%emt 0:00:00]} Rf2 {
[%emt 0:00:00]} 25. g4 {[%emt 0:00:00]} Re2 {[%emt 0:00:00]} 26. a4 {[%emt 0:
00:00]} Nxe3 {[%emt 0:00:00]} 27. Nxe3 {[%emt 0:00:00]} Rxe3 {[%emt 0:00:00]}
28. Kd2 {[%emt 0:00:00]} Rg3 {[%emt 0:00:00]} 29. Re1 {[%emt 0:00:00]} Rxh3 {
[%emt 0:00:00]} 30. Rxe4 {[%emt 0:00:00]} Kg6 {[%emt 0:00:00]} 31. a5 {[%emt 0:
00:00]} Kf6 {[%emt 0:00:00]} 32. Rc4 {[%emt 0:00:00]} h5 {[%emt 0:00:00]} 33.
gxh5 {[%emt 0:00:00]} Rxh5 {[%emt 0:00:00]} 34. Ke3 {[%emt 0:00:00]} Ke6 {
[%emt 0:00:00]} 35. Rg4 {[%emt 0:00:00]} g5 {[%emt 0:00:00]} 36. c3 {[%emt 0:
00:00]} Kd5 {[%emt 0:00:00]} 37. b4 {[%emt 0:00:00]} 1/2-1/2

[Event "5e festival international d'échecs d'A"]
[Site "Allauch, France"]
[Date "2023.08.29"]
[Round "3.5"]
[White "Toth, Kincso"]
[Black "Monneveux, Nicolas"]
[Result "1-0"]
[WhiteElo "1709"]
[BlackElo "1550"]
[PlyCount "81"]
[EventDate "2023.??.??"]
[TimeControl "1"]

1. e4 {[%emt 0:35:19]} c6 {[%emt 0:00:27]} 2. Nf3 {[%emt 0:00:13]} d5 {[%emt 0:
00:35]} 3. d3 {[%emt 0:00:13]} g6 {[%emt 0:00:37]} 4. Qe2 {[%emt 0:03:31]} Bg7
{[%emt 0:02:03]} 5. g3 {[%emt 0:02:25]} Bg4 {[%emt 0:06:23]} 6. Bg2 {[%emt 0:
00:28]} e5 {[%emt 0:01:14]} 7. exd5 {[%emt 0:02:24]} cxd5 {[%emt 0:00:30]} 8.
h3 {[%emt 0:01:39]} Bxf3 {[%emt 0:01:06]} 9. Qxf3 {[%emt 0:03:34]} Ne7 {
[%emt 0:05:08]} 10. Nc3 {[%emt 0:04:36]} Qa5 {[%emt 0:19:04]} 11. Bd2 {[%emt 0:
00:29]} Qb6 {[%emt 0:04:24]} 12. Rb1 {[%emt 0:04:42]} O-O {[%emt 0:04:31]} 13.
Nxd5 {[%emt 0:02:03]} Nxd5 {[%emt 0:00:34]} 14. Qxd5 {[%emt 0:00:08]} Nc6 {
[%emt 0:00:19]} 15. O-O {[%emt 0:02:50]} Rad8 {[%emt 0:01:03]} 16. Qc4 {
[%emt 0:05:16]} Rc8 {[%emt 0:02:31]} 17. Qa4 {[%emt 0:04:42]} a6 {[%emt 0:00:
00]} 18. Be3 {[%emt 0:00:00]} Qd8 {[%emt 0:00:00]} 19. Rfd1 {[%emt 0:00:00]}
Kh8 {[%emt 0:00:00]} 20. Kh2 {[%emt 0:00:00]} Qe7 {[%emt 0:00:00]} 21. Re1 {
[%emt 0:00:00]} Nb8 {[%emt 0:00:00]} 22. f4 {[%emt 0:00:00]} b5 {[%emt 0:00:00]
} 23. Qb3 {[%emt 0:00:00]} Qc7 {[%emt 0:00:00]} 24. c3 {[%emt 0:00:00]} Nd7 {
[%emt 0:00:00]} 25. Qd1 {[%emt 0:00:00]} Rcd8 {[%emt 0:00:00]} 26. d4 {[%emt 0:
00:00]} Nb6 {[%emt 0:00:00]} 27. fxe5 {[%emt 0:00:00]} Bxe5 {[%emt 0:00:00]}
28. Qf3 {[%emt 0:00:00]} Bg7 {[%emt 0:00:00]} 29. Bf4 {[%emt 0:00:00]} Qc8 {
[%emt 0:00:00]} 30. Qf2 {[%emt 0:00:00]} Nc4 {[%emt 0:00:00]} 31. Re2 {[%emt 0:
00:00]} Qd7 {[%emt 0:00:00]} 32. Rbe1 {[%emt 0:00:00]} Rde8 {[%emt 0:00:00]}
33. b3 {[%emt 0:00:00]} Nd6 {[%emt 0:00:00]} 34. Qf3 {[%emt 0:00:00]} Rxe2 {
[%emt 0:00:00]} 35. Rxe2 {[%emt 0:00:00]} Rc8 {[%emt 0:00:00]} 36. Bxd6 {
[%emt 0:00:00]} Qxd6 {[%emt 0:00:00]} 37. Qxf7 {[%emt 0:00:00]} Rf8 {[%emt 0:
00:00]} 38. Re8 {[%emt 0:00:00]} Rxe8 {[%emt 0:02:21]} 39. Qxe8+ {[%emt 0:00:
00]} Bf8 {[%emt 0:00:00]} 40. Qf7 {[%emt 0:00:00]} Qa3 {[%emt 0:00:00]} 41. h4
{[%emt 0:00:00]} 1-0

[Event "5e festival international d'échecs d'A"]
[Site "Allauch, France"]
[Date "2023.08.29"]
[Round "3.6"]
[White "Rigat, Severin"]
[Black "Personne, Solene"]
[Result "0-1"]
[WhiteElo "1289"]
[BlackElo "1542"]
[PlyCount "96"]
[EventDate "2023.??.??"]
[TimeControl "1"]

1. e4 {[%emt 0:00:00]} c5 {[%emt 0:00:00]} 2. Nf3 {[%emt 0:00:00]} d6 {[%emt 0:
00:00]} 3. Bb5+ {[%emt 0:00:00]} Bd7 {[%emt 0:00:00]} 4. Bxd7+ {[%emt 0:00:00]}
Nxd7 {[%emt 0:00:00]} 5. d4 {[%emt 0:00:00]} cxd4 {[%emt 0:00:00]} 6. Nxd4 {
[%emt 0:00:00]} Ngf6 {[%emt 0:00:00]} 7. Nc3 {[%emt 0:00:00]} e5 {[%emt 0:00:
00]} 8. Nf5 {[%emt 0:00:00]} Nc5 {[%emt 0:00:00]} 9. Bg5 {[%emt 0:00:00]} Ne6 {
[%emt 0:00:00]} 10. Bxf6 {[%emt 0:00:00]} Qxf6 {[%emt 0:00:00]} 11. Nxd6+ {
[%emt 0:00:00]} Bxd6 {[%emt 0:00:00]} 12. Qxd6 {[%emt 0:00:00]} Rd8 {[%emt 0:
00:00]} 13. Qb4 {[%emt 0:00:00]} Qg5 {[%emt 0:00:00]} 14. Nd5 {[%emt 0:00:00]}
Rd7 {[%emt 0:00:00]} 15. O-O {[%emt 0:00:00]} Nd4 {[%emt 0:00:00]} 16. Qa4 {
[%emt 0:00:00]} b5 {[%emt 0:00:00]} 17. Qa6 {[%emt 0:00:00]} O-O {[%emt 0:00:
00]} 18. c3 {[%emt 0:00:00]} Nf3+ {[%emt 0:00:00]} 19. Kh1 {[%emt 0:00:00]} Nh4
{[%emt 0:00:00]} 20. g3 {[%emt 0:00:00]} Nf3 {[%emt 0:00:00]} 21. Qxb5 {
[%emt 0:00:00]} Rfd8 {[%emt 0:00:00]} 22. Kg2 {[%emt 0:00:00]} Nd2 {[%emt 0:00:
00]} 23. Rfd1 {[%emt 0:00:00]} Nxe4 {[%emt 0:00:00]} 24. Qc4 {[%emt 0:00:00]}
Nd6 {[%emt 0:00:00]} 25. Qe2 {[%emt 0:00:00]} e4 {[%emt 0:00:00]} 26. h4 {
[%emt 0:00:00]} Qe5 {[%emt 0:00:00]} 27. Ne3 {[%emt 0:00:00]} f5 {[%emt 0:00:
00]} 28. Nc4 {[%emt 0:00:00]} Qb5 {[%emt 0:00:00]} 29. Rd4 {[%emt 0:00:00]} Nf7
{[%emt 0:00:00]} 30. a4 {[%emt 0:00:00]} Qa6 {[%emt 0:00:00]} 31. Rxd7 {
[%emt 0:00:00]} Rxd7 {[%emt 0:00:00]} 32. Kf1 {[%emt 0:00:00]} Rd3 {[%emt 0:00:
00]} 33. Ne3 {[%emt 0:00:00]} Qe6 {[%emt 0:00:00]} 34. g4 {[%emt 0:00:00]} fxg4
{[%emt 0:00:00]} 35. Qxg4 {[%emt 0:00:00]} Qf6 {[%emt 0:00:00]} 36. Qxe4 {
[%emt 0:00:00]} Ne5 {[%emt 0:00:00]} 37. Ke2 {[%emt 0:00:00]} Rd8 {[%emt 0:00:
00]} 38. b4 {[%emt 0:00:00]} Ng6 {[%emt 0:00:00]} 39. Rd1 {[%emt 0:00:00]} Rf8
{[%emt 0:00:00]} 40. Ng4 {[%emt 0:00:00]} Qxc3 {[%emt 0:00:00]} 41. Ne3 {
[%emt 0:00:00]} Qb2+ {[%emt 0:00:00]} 42. Rd2 {[%emt 0:00:00]} Qf6 {[%emt 0:00:
00]} 43. Kd3 {[%emt 0:00:00]} Nf4+ {[%emt 0:00:00]} 44. Kc2 {[%emt 0:00:00]}
Rc8+ {[%emt 0:00:00]} 45. Kb1 {[%emt 0:00:00]} Qc3 {[%emt 0:00:00]} 46. Rc2 {
[%emt 0:00:00]} Qe1+ {[%emt 0:00:00]} 47. Kb2 {[%emt 0:00:00]} Rxc2+ {[%emt 0:
00:00]} 48. Nxc2 {[%emt 0:00:00]} Qxe4 {[%emt 0:00:00]} 0-1

[Event "5e festival international d'échecs d'A"]
[Site "Allauch, France"]
[Date "2023.08.29"]
[Round "3.7"]
[White "Carissan, Matteo"]
[Black "Negre Albert, Oscar"]
[Result "0-1"]
[WhiteElo "1440"]
[BlackElo "1296"]
[PlyCount "110"]
[EventDate "2023.??.??"]
[TimeControl "1"]

1. e4 {[%emt 0:00:00]} c5 {[%emt 0:00:19]} 2. Nc3 {[%emt 0:00:00]} Nc6 {
[%emt 0:00:00]} 3. g3 {[%emt 0:00:00]} g6 {[%emt 0:00:00]} 4. Bg2 {[%emt 0:00:
00]} Bg7 {[%emt 0:00:00]} 5. d3 {[%emt 0:00:00]} Nf6 {[%emt 0:00:00]} 6. f4 {
[%emt 0:00:00]} e5 {[%emt 0:00:00]} 7. Nf3 {[%emt 0:00:00]} d5 {[%emt 0:00:00]}
8. fxe5 {[%emt 0:00:00]} Ng4 {[%emt 0:00:00]} 9. Nxd5 {[%emt 0:00:00]} Ngxe5 {
[%emt 0:00:00]} 10. O-O {[%emt 0:00:00]} O-O {[%emt 0:00:00]} 11. Nxe5 {
[%emt 0:00:00]} Nxe5 {[%emt 0:00:00]} 12. Be3 {[%emt 0:00:00]} b6 {[%emt 0:00:
00]} 13. Qc1 {[%emt 0:00:00]} Ng4 {[%emt 0:00:00]} 14. Bg5 {[%emt 0:00:00]}
Bd4+ {[%emt 0:00:00]} 15. Kh1 {[%emt 0:00:00]} f6 {[%emt 0:00:00]} 16. Be3 {
[%emt 0:00:00]} Nxe3 {[%emt 0:00:00]} 17. Nxe3 {[%emt 0:00:00]} Bb7 {[%emt 0:
00:00]} 18. c3 {[%emt 0:00:00]} Be5 {[%emt 0:00:00]} 19. Qc2 {[%emt 0:00:00]}
Qc7 {[%emt 0:00:00]} 20. Rac1 {[%emt 0:00:00]} Rad8 {[%emt 0:00:00]} 21. Rfd1 {
[%emt 0:00:00]} Qf7 {[%emt 0:00:00]} 22. Qa4 {[%emt 0:00:00]} Bc8 {[%emt 0:00:
00]} 23. d4 {[%emt 0:00:00]} cxd4 {[%emt 0:00:00]} 24. cxd4 {[%emt 0:00:00]}
Bb8 {[%emt 0:00:00]} 25. Bf1 {[%emt 0:00:00]} Qe7 {[%emt 0:00:00]} 26. d5 {
[%emt 0:00:00]} Bd7 {[%emt 0:00:00]} 27. Qc4 {[%emt 0:00:00]} Rc8 {[%emt 0:00:
00]} 28. d6+ {[%emt 0:00:00]} Qe6 {[%emt 0:00:00]} 29. Qxe6+ {[%emt 0:00:00]}
Bxe6 {[%emt 0:00:00]} 30. Bc4 {[%emt 0:00:00]} Bxc4 {[%emt 0:00:00]} 31. Rxc4 {
[%emt 0:00:00]} Rcd8 {[%emt 0:00:00]} 32. Rcd4 {[%emt 0:00:00]} Rd7 {[%emt 0:
00:00]} 33. Ng4 {[%emt 0:00:00]} h5 {[%emt 0:00:00]} 34. e5 {[%emt 0:00:00]}
hxg4 {[%emt 0:00:00]} 35. e6 {[%emt 0:00:00]} Rxd6 {[%emt 0:00:00]} 36. Rxd6 {
[%emt 0:00:00]} Bxd6 {[%emt 0:00:00]} 37. Rxd6 {[%emt 0:00:00]} Re8 {[%emt 0:
00:00]} 38. Kg1 {[%emt 0:00:00]} Kf8 {[%emt 0:00:00]} 39. Kf2 {[%emt 0:00:00]}
Ke7 {[%emt 0:00:00]} 40. Rd7+ {[%emt 0:00:00]} Kxe6 {[%emt 0:00:00]} 41. Rxa7 {
[%emt 0:00:00]} Kd5 {[%emt 0:00:00]} 42. Rb7 {[%emt 0:00:00]} Re6 {[%emt 0:00:
00]} 43. Rc7 {[%emt 0:00:00]} Kd4 {[%emt 0:00:00]} 44. Rd7+ {[%emt 0:00:00]}
Kc4 {[%emt 0:00:00]} 45. Rd2 {[%emt 0:00:00]} b5 {[%emt 0:00:00]} 46. Re2 {
[%emt 0:00:00]} Re5 {[%emt 0:00:00]} 47. Rxe5 {[%emt 0:00:00]} fxe5 {[%emt 0:
00:00]} 48. Ke3 {[%emt 0:00:00]} Kd5 {[%emt 0:00:00]} 49. Kd3 {[%emt 0:00:00]}
e4+ {[%emt 0:00:00]} 50. Ke3 {[%emt 0:00:00]} g5 {[%emt 0:00:00]} 51. Kd2 {
[%emt 0:01:10]} Kd4 {[%emt 0:00:00]} 52. Ke2 {[%emt 0:00:00]} e3 {[%emt 0:00:
00]} 53. b3 {[%emt 0:00:00]} b4 {[%emt 0:00:00]} 54. Ke1 {[%emt 0:00:00]} Kd3 {
[%emt 0:00:00]} 55. a4 {[%emt 0:00:00]} bxa3 {[%emt 0:00:00]} 0-1

[Event "5e festival international d'échecs d'A"]
[Site "Allauch, France"]
[Date "2023.08.29"]
[Round "3.8"]
[White "Djiane, Alexandra"]
[Black "Bonchristiani, Pierre"]
[Result "0-1"]
[WhiteElo "1199"]
[BlackElo "1416"]
[PlyCount "48"]
[EventDate "2023.??.??"]
[TimeControl "1"]

1. Nf3 {[%emt 0:00:00]} d5 {[%emt 0:00:00]} 2. d4 {[%emt 0:00:00]} Nf6 {
[%emt 0:00:00]} 3. g3 {[%emt 0:00:00]} e6 {[%emt 0:00:00]} 4. Nc3 {[%emt 0:00:
00]} c5 {[%emt 0:00:00]} 5. Bg2 {[%emt 0:00:00]} Be7 {[%emt 0:00:00]} 6. O-O {
[%emt 0:00:00]} Nc6 {[%emt 0:00:00]} 7. Bf4 {[%emt 0:00:00]} O-O {[%emt 0:00:
00]} 8. e3 {[%emt 0:00:00]} Ne4 {[%emt 0:00:00]} 9. Ne5 {[%emt 0:00:00]} Nxc3 {
[%emt 0:00:00]} 10. Nxc6 {[%emt 0:00:00]} bxc6 {[%emt 0:00:00]} 11. bxc3 {
[%emt 0:00:00]} g5 {[%emt 0:00:00]} 12. Bxg5 {[%emt 0:00:00]} Bxg5 {[%emt 0:00:
00]} 13. dxc5 {[%emt 0:00:00]} Kh8 {[%emt 0:00:00]} 14. Qd3 {[%emt 0:00:00]} a5
{[%emt 0:00:00]} 15. c4 {[%emt 0:00:00]} Ba6 {[%emt 0:00:00]} 16. Rfd1 {
[%emt 0:00:00]} Bxc4 {[%emt 0:00:00]} 17. Qa3 {[%emt 0:00:00]} Bf6 {[%emt 0:00:
00]} 18. Rac1 {[%emt 0:00:00]} Qc7 {[%emt 0:00:00]} 19. c3 {[%emt 0:00:00]}
Rfb8 {[%emt 0:00:00]} 20. Rb1 {[%emt 0:00:00]} Rxb1 {[%emt 0:00:00]} 21. Rxb1 {
[%emt 0:00:00]} Rb8 {[%emt 0:00:00]} 22. Rxb8+ {[%emt 0:00:00]} Qxb8 {[%emt 0:
00:00]} 23. e4 {[%emt 0:00:00]} Qb1+ {[%emt 0:00:00]} 24. Bf1 {[%emt 0:00:00]}
Qxf1# {[%emt 0:00:00]} 0-1